fUSD/lending_fUSD_20250607
["ID","MTS","AMOUNT","RATE_DAILY","PERIOD"]
[364856089,1749275500409,-1830.02,0.00028547,5]
[364856090,1749275500419,-480.0,0.00028547,5]
[364856091,1749275500429,-565.41,0.00028547,5]
[364856092,1749275500439,-757.09,0.00028547,5]
[364856093,1749275500448,-1739.86,0.00028547,5]
[364856094,1749275500458,-480.0,0.00028547,5]
[364856095,1749275500468,-886.47,0.00028547,5]
[364856096,1749275500478,-10865.99,0.00028547,5]
[364856097,1749275500488,-480.0,0.00028547,5]
[364856098,1749275500498,-1387.38,0.00028547,5]
[364856099,1749275500507,-644.76,0.00028547,5]
[364856100,1749275500517,-1102.12,0.00028547,5]
[364856101,1749275500527,-480.0,0.00028547,5]
[364856102,1749275500537,-1440.45,0.00028547,5]
[364856103,1749275500547,-480.0,0.00028547,5]
[364856104,1749275500558,-642.18,0.00028547,5]
[364856105,1749275500568,-686.12,0.00028547,5]
[364856106,1749275500578,-480.0,0.00028547,5]
[364856107,1749275500588,-480.0,0.00028547,5]
[364856108,1749275500598,-480.0,0.00028547,5]
[364856109,1749275500608,-7442.43,0.00028547,5]
[364856110,1749275500618,-480.0,0.00028547,5]
[364856111,1749275500627,-3308.39,0.00028547,5]
[364856112,1749275500637,-646.52,0.00028547,5]
[364856113,1749275500647,-2073.8,0.00028547,5]
[364856114,1749275500657,-483.04,0.00028547,2]
[364856115,1749275500667,-480.0,0.00028547,5]
[364856116,1749275500677,-2227.22,0.00028547,5]
[364856117,1749275500687,-16410.82,0.00028547,5]
[364856118,1749275500696,-480.0,0.00028547,5]
[364856119,1749275500706,-846.38,0.00028547,5]
[364856120,1749275500715,-1668.56,0.00028547,5]
[364856121,1749275500724,-480.0,0.00028547,2]
[364856122,1749275500734,-3612.7,0.00028547,5]
[364856123,1749275500744,-816.17,0.00028547,5]
[364856124,1749275500753,-1442.32,0.00028547,5]
[364856125,1749275500763,-300.96,0.00028585,2]
[364856126,1749275500772,-354.12,0.00028585,2]
[364856127,1749275500782,-454.90789797,0.00028624,19]
[364856128,1749275500791,-150.0,0.00028627,7]
[364856129,1749275500801,-150.0,0.00028627,7]
[364856130,1749275500810,-279.10775981,0.00028627,7]
[364856131,1749275500819,-218.84593086,0.00028627,7]
[364856132,1749275500828,-150.0,0.00028627,7]
[364856133,1749275500838,-151.89863202,0.00028627,7]
[364856134,1749275500848,-150.0,0.00028627,7]
[364856135,1749275500857,-150.0,0.00028627,7]
[364856136,1749275500867,-150.0,0.00028627,7]
[364856137,1749275500876,-150.0,0.00028627,7]
[364856138,1749275500885,-150.0,0.00028627,7]
[364856139,1749275500894,-150.0,0.00028627,7]
[364856140,1749275500904,-150.0,0.00028627,7]
[364856141,1749275500913,-1000.0,0.00028633,7]
[364856142,1749275500922,-223.0315306,0.00028638,2]
[364856143,1749275500931,-162.380719,0.00028638,2]
[364856144,1749275500940,-1037.0,0.00028639,2]
[364856145,1749275500950,-279.10775981,0.00028659,7]
[364856146,1749275500959,-218.84593086,0.00028659,7]
[364856147,1749275500968,-1500.0,0.00028668,5]
[364856148,1749275500978,-150.0,0.0002867,7]
[364856149,1749275500988,-150.0,0.00028673,7]
[364856150,1749275500997,-1000.0,0.00028678,2]
[364856151,1749275501007,-279.10775981,0.00028691,7]
[364856152,1749275501016,-218.84593086,0.00028691,7]
[364856153,1749275501025,-150.0,0.00028692,7]
[364856154,1749275501036,-211.0,0.000287,2]
[364856155,1749275501045,-14121.23,0.000287,2]
[364856156,1749275501055,-150.0,0.00028709,7]
[364856157,1749275501064,-636.82,0.00028712,5]
[364856158,1749275501074,-151.0,0.00028712,7]
[364856159,1749275501083,-508.809037,0.00028712,7]
[364856160,1749275501093,-508.809037,0.00028712,7]
[364856161,1749275501102,-1712.784714,0.00028712,5]
[364856162,1749275501111,-2014.532933,0.00028712,5]
[364856163,1749275501121,-188.377669,0.00028712,7]
[364856164,1749275501131,-191.39999253,0.00028712,5]
[364856165,1749275501141,-480.0,0.00028712,5]
[364856166,1749275501150,-153.757701,0.00028712,7]
[364856167,1749275501161,-151.0,0.00028712,7]
[364856168,1749275501173,-151.0,0.00028712,7]
[364856169,1749275501183,-151.0,0.00028712,7]
[364856170,1749275501193,-180.364341,0.00028712,7]
[364856171,1749275501203,-480.0,0.00028712,5]
[364856172,1749275501212,-180.364341,0.00028712,7]
[364856173,1749275501222,-965.47,0.00028712,5]
[364856174,1749275501231,-469.010182,0.00028712,7]
[364856175,1749275501242,-171.43902,0.00028712,7]
[364856176,1749275501252,-171.439028,0.00028712,7]
[364856177,1749275501261,-480.0,0.00028712,5]
[364856178,1749275501271,-151.0,0.00028712,7]
[364856179,1749275501281,-151.0,0.00028712,7]
[364856180,1749275501291,-779.14,0.00028712,5]
[364856181,1749275501301,-480.0,0.00028712,5]
[364856182,1749275501311,-151.0,0.00028712,7]
[364856183,1749275501320,-466.442197,0.00028712,7]
[364856184,1749275501330,-151.0,0.00028712,7]
[364856185,1749275501340,-480.0,0.00028712,5]
[364856186,1749275501350,-480.0,0.00028712,5]
[364856187,1749275501360,-157.072117,0.00028712,7]
[364856188,1749275501371,-157.072117,0.00028712,7]
[364856189,1749275501382,-480.0,0.00028712,5]
[364856190,1749275501391,-480.0,0.00028712,5]
[364856191,1749275501401,-151.0,0.00028712,7]
[364856192,1749275501411,-151.0,0.00028712,7]
[364856193,1749275501420,-250.957019,0.00028712,7]
[364856194,1749275501430,-163.776033,0.00028712,7]
[364856195,1749275501440,-553.1,0.00028712,5]
[364856196,1749275501449,-163.776035,0.00028712,7]
[364856197,1749275501459,-582.54654786,0.00028712,2]
[364856198,1749275501469,-480.0,0.00028712,5]
[364856199,1749275501479,-1873.25,0.00028712,5]
[364856200,1749275501489,-748.25,0.00028712,5]
[364856201,1749275501498,-302.977916,0.00028712,7]
[364856202,1749275501508,-480.0,0.00028712,5]
[364856203,1749275501517,-302.977909,0.00028712,7]
[364856204,1749275501526,-891.05,0.00028712,5]
[364856205,1749275501536,-807.46,0.00028712,5]
[364856206,1749275501546,-480.0,0.00028712,5]
[364856207,1749275501555,-480.0,0.00028712,5]
[364856208,1749275501566,-480.0,0.00028712,5]
[364856209,1749275501576,-480.0,0.00028712,5]
[364856210,1749275501586,-152.168168,0.00028712,7]
[364856211,1749275501596,-182.90456,0.00028712,7]
[364856212,1749275501606,-592.7,0.00028712,5]
[364856213,1749275501616,-511.82,0.00028712,5]
[364856214,1749275501626,-182.90456,0.00028712,7]
[364856215,1749275501635,-488.56,0.00028712,5]
[364856216,1749275501645,-152.168169,0.00028712,7]
[364856217,1749275501655,-1115.25,0.00028712,5]
[364856218,1749275501664,-1363.86,0.00028712,5]
[364856219,1749275501674,-504.56,0.00028712,5]
[364856220,1749275501683,-774.18,0.00028712,5]
[364856221,1749275501693,-692.39,0.00028712,5]
[364856222,1749275501702,-480.0,0.00028712,5]
[364856223,1749275501712,-598.1,0.00028712,5]
[364856224,1749275501722,-265.195417,0.00028712,7]
[364856225,1749275501731,-585.52,0.00028712,5]
[364856226,1749275501741,-1003.36,0.00028712,5]
[364856227,1749275501751,-265.195415,0.00028712,7]
[364856228,1749275501940,-480.0,0.00028712,5]
[364856229,1749275501971,-528.11,0.00028712,5]
[364856230,1749275501982,-1090.43,0.00028712,5]
[364856231,1749275501993,-480.0,0.00028712,5]
[364856232,1749275502005,-845.75,0.00028712,5]
[364856233,1749275502015,-1268.78,0.00028712,5]
[364856234,1749275502024,-705.95,0.00028712,5]
[364856235,1749275502035,-480.0,0.00028712,5]
[364856236,1749275502045,-480.0,0.00028712,5]
[364856237,1749275502055,-667.85,0.00028712,5]
[364856238,1749275502065,-525.14,0.00028712,5]
[364856239,1749275502075,-630.65,0.00028712,5]
[364856240,1749275502085,-556.44,0.00028712,5]
[364856241,1749275502095,-480.0,0.00028712,5]
[364856242,1749275502104,-865.84,0.00028712,5]
[364856243,1749275502115,-480.0,0.00028712,5]
[364856244,1749275502124,-987.96,0.00028712,5]
[364856245,1749275502135,-683.29,0.00028712,5]
[364856246,1749275502145,-983.97,0.00028712,5]
[364856247,1749275502154,-480.0,0.00028712,5]
[364856248,1749275502166,-480.0,0.00028712,5]
[364856249,1749275502176,-811.35,0.00028712,5]
[364856250,1749275502185,-480.0,0.00028712,5]
[364856251,1749275502195,-994.12,0.00028712,5]
[364856252,1749275502204,-549.5,0.00028712,5]
[364856253,1749275502214,-586.32,0.00028712,5]
[364856254,1749275502225,-1161.87,0.00028712,5]
[364856255,1749275502234,-480.0,0.00028712,5]
[364856256,1749275502247,-337.05142663,0.00028712,5]
[364856257,1749275502257,-480.0,0.00028712,5]
[364856258,1749275502267,-480.0,0.00028712,5]
[364856259,1749275502277,-531.17,0.00028712,5]
[364856260,1749275502287,-1154.57,0.00028712,5]
[364856261,1749275502297,-624.96,0.00028712,5]
[364856262,1749275502306,-706.88,0.00028712,5]
[364856263,1749275502316,-480.0,0.00028712,5]
[364856264,1749275502325,-800.86,0.00028712,5]
[364856265,1749275502335,-607.83,0.00028712,5]
[364856266,1749275502345,-754.4,0.00028712,5]
[364856267,1749275502355,-476.0825683,0.00028712,5]
[364856268,1749275502365,-1444.88,0.00028712,5]
[364856269,1749275502375,-480.0,0.00028712,5]
[364856270,1749275502385,-1068.78,0.00028712,5]
[364856271,1749275502395,-480.0,0.00028712,5]
[364856272,1749275502404,-722.25,0.00028712,5]
[364856273,1749275502415,-1932.61,0.00028712,5]
[364856274,1749275502425,-658.72,0.00028712,5]
[364856275,1749275502434,-480.0,0.00028712,5]
[364856276,1749275502444,-943.75,0.00028712,5]
[364856277,1749275502454,-480.0,0.00028712,5]
[364856278,1749275502463,-814.9,0.00028712,5]
[364856279,1749275502474,-480.0,0.00028712,5]
[364856280,1749275502484,-480.0,0.00028712,5]
[364856281,1749275502493,-576.73,0.00028712,5]
[364856282,1749275502503,-748.49,0.00028712,5]
[364856283,1749275502513,-1442.29,0.00028712,5]
[364856284,1749275502523,-480.0,0.00028712,5]
[364856285,1749275502533,-853.62,0.00028712,5]
[364856286,1749275502543,-480.0,0.00028712,5]
[364856287,1749275502553,-480.0,0.00028712,5]
[364856288,1749275502563,-480.0,0.00028712,5]
[364856289,1749275502572,-949.58,0.00028712,5]
[364856290,1749275502582,-842.89,0.00028712,5]
[364856291,1749275502592,-1000.0,0.00028712,5]
[364856292,1749275502601,-891.66,0.00028712,5]
[364856293,1749275502612,-916.35,0.00028712,5]
[364856294,1749275502622,-923.96,0.00028712,5]
[364856295,1749275502632,-1066.78,0.00028712,5]
[364856296,1749275502642,-765.06,0.00028712,5]
[364856297,1749275502651,-424.64933847,0.00028712,5]
[364856298,1749275502662,-589.04,0.00028712,5]
[364856299,1749275502672,-943.26,0.00028712,5]
[364856300,1749275502681,-480.0,0.00028712,5]
[364856301,1749275502691,-871.81,0.00028712,5]
[364856302,1749275502701,-480.0,0.00028712,5]
[364856303,1749275502711,-480.0,0.00028712,5]
[364856304,1749275502721,-1182.54,0.00028712,5]
[364856305,1749275502731,-480.0,0.00028712,5]
[364856306,1749275502740,-1648.23,0.00028712,5]
[364856307,1749275502751,-1744.26,0.00028712,5]
[364856308,1749275502761,-2996.31,0.00028712,5]
[364856309,1749275502770,-594.24,0.00028712,5]
[364856310,1749275502780,-1656.96,0.00028712,5]
[364856311,1749275502790,-480.0,0.00028712,5]
[364856312,1749275502800,-581.99,0.00028712,5]
[364856313,1749275502810,-480.0,0.00028712,5]
[364856314,1749275502820,-4307.55,0.00028712,5]
[364856315,1749275502830,-629.18,0.00028712,5]
[364856316,1749275502840,-593.81,0.00028712,5]
[364856317,1749275502850,-594.43,0.00028712,5]
[364856318,1749275502859,-798.07,0.00028712,5]
[364856319,1749275502868,-397.38,0.00028712,5]
[364856320,1749275502878,-831.81,0.00028712,5]
[364856321,1749275502887,-5383.27,0.00028712,5]
[364856322,1749275502897,-2090.28,0.00028712,5]
[364856323,1749275502907,-1267.21,0.00028712,5]
[364856324,1749275502917,-10955.06,0.00028712,5]
[364856325,1749275502926,-480.0,0.00028712,5]
[364856326,1749275502936,-959.52,0.00028712,5]
[364856327,1749275502945,-5511.22,0.00028712,5]
[364856328,1749275502955,-7087.11,0.00028712,5]
[364856329,1749275502965,-2433.15,0.00028712,5]
[364856330,1749275502975,-480.0,0.00028712,5]
[364856331,1749275502985,-480.0,0.00028712,5]
[364856332,1749275502994,-480.0,0.00028712,5]
[364856333,1749275503003,-800.24,0.00028712,5]
[364856334,1749275503013,-1027.33,0.00028712,5]
[364856335,1749275503023,-1086.55,0.00028712,5]
[364856336,1749275503032,-1813.57,0.00028712,5]
[364856337,1749275503042,-1078.29,0.00028712,5]
[364856338,1749275503053,-1367.55,0.00028712,5]
[364856339,1749275503063,-7852.96,0.00028712,5]
[364856340,1749275503074,-2982.07,0.00028712,5]
[364856341,1749275503084,-1926.65,0.00028712,5]
[364856342,1749275503093,-556.78132379,0.00028712,5]
[364856343,1749275503103,-1720.22,0.00028712,5]
[364856344,1749275503113,-596.48,0.00028712,5]
[364856345,1749275503126,-3698.26,0.00028712,5]
[364856346,1749275503137,-1287.03,0.00028712,5]
[364856347,1749275503148,-647.73,0.00028712,5]
[364856348,1749275503158,-480.0,0.00028712,5]
[364856349,1749275503172,-561.51,0.00028712,5]
[364856350,1749275503183,-285.84708235,0.00028712,5]
[364856351,1749275503193,-480.0,0.00028712,5]
[364856352,1749275503203,-1325.93,0.00028712,5]
[364856353,1749275503213,-1912.4,0.00028712,2]
[364856354,1749275503223,-1909.93,0.00028712,5]
[364856355,1749275503233,-3481.74,0.00028712,5]
[364856356,1749275503244,-1205.05,0.00028712,5]
[364856357,1749275503254,-1000.0,0.00028712,5]
[364856358,1749275503263,-569.38,0.00028712,5]
[364856359,1749275503273,-480.0,0.00028712,5]
[364856360,1749275503283,-480.0,0.00028712,5]
[364856361,1749275503294,-480.0,0.00028712,5]
[364856362,1749275503304,-480.0,0.00028712,5]
[364856363,1749275503314,-769.38,0.00028712,5]
[364856364,1749275503324,-63032.49,0.00028712,5]
[364856365,1749275503334,-846.16,0.00028712,5]
[364856366,1749275503344,-480.0,0.00028712,5]
[364856367,1749275503355,-2534.32,0.00028712,5]
[364856368,1749275503365,-480.0,0.00028712,5]
[364856369,1749275503374,-3160.19,0.00028712,5]
[364856370,1749275503384,-755.58,0.00028712,5]
[364856371,1749275503394,-1597.05,0.00028712,5]
[364856372,1749275503403,-5855.72,0.00028712,5]
[364856373,1749275503414,-480.0,0.00028712,5]
[364856374,1749275503423,-11381.49,0.00028712,5]
[364856375,1749275503434,-1244.3,0.00028712,5]
[364856376,1749275503444,-480.0,0.00028712,5]
[364856377,1749275503454,-1738.26,0.00028712,5]
[364856378,1749275503465,-3704.48,0.00028712,5]
[364856379,1749275503474,-480.0,0.00028712,5]
[364856380,1749275503484,-1045.76,0.00028712,5]
[364856381,1749275503494,-735.86,0.00028712,5]
[364856382,1749275503504,-1516.04,0.00028712,5]
[364856383,1749275503514,-480.0,0.00028712,5]
[364856384,1749275503524,-1047.58,0.00028712,5]
[364856385,1749275503534,-1602.25,0.00028712,5]
[364856386,1749275503544,-749.45,0.00028712,5]
[364856387,1749275503554,-961.5,0.00028712,5]
[364856388,1749275503565,-480.0,0.00028712,5]
[364856389,1749275503575,-714.3,0.00028712,5]
[364856390,1749275503584,-1392.55,0.00028712,5]
[364856391,1749275503594,-1271.75,0.00028712,5]
[364856392,1749275503604,-2908.68,0.00028712,5]
[364856393,1749275503614,-742.56,0.00028712,5]
[364856394,1749275503624,-571.8,0.00028712,5]
[364856395,1749275503635,-1714.36,0.00028712,5]
[364856396,1749275503645,-932.26,0.00028712,5]
[364856397,1749275503655,-5571.7,0.00028712,5]
[364856398,1749275503665,-480.0,0.00028712,5]
[364856399,1749275503675,-871.56,0.00028712,5]
[364856400,1749275503686,-1450.59,0.00028712,5]
[364856401,1749275503696,-480.0,0.00028712,5]
[364856402,1749275503707,-1122.69,0.00028712,5]
[364856403,1749275503716,-1529.93,0.00028712,5]
[364856404,1749275503726,-480.0,0.00028712,5]
[364856405,1749275503736,-480.0,0.00028712,5]
[364856406,1749275503747,-5767.87,0.00028712,5]
[364856407,1749275503757,-2513.87,0.00028712,5]
[364856408,1749275503766,-747.9,0.00028712,5]
[364856409,1749275503776,-1569.25,0.00028712,5]
[364856410,1749275503786,-480.0,0.00028712,5]
[364856411,1749275503796,-4023.49,0.00028712,5]
[364856412,1749275503806,-1345.91,0.00028712,5]
[364856413,1749275503815,-480.0,0.00028712,5]
[364856414,1749275503825,-4322.98,0.00028712,5]
[364856415,1749275503836,-286.24272846,0.00028712,5]
[364856416,1749275503845,-494.08,0.00028712,5]
[364856417,1749275503855,-819.83,0.00028712,5]
[364856418,1749275503865,-480.0,0.00028712,5]
[364856419,1749275503875,-687.89,0.00028712,5]
[364856420,1749275503885,-480.0,0.00028712,5]
[364856421,1749275503895,-480.0,0.00028712,5]
[364856422,1749275503905,-480.0,0.00028712,5]
[364856423,1749275503915,-3258.93,0.00028712,5]
[364856424,1749275503926,-480.0,0.00028712,5]
[364856425,1749275503936,-480.0,0.00028712,5]
[364856426,1749275503946,-998.9,0.00028712,5]
[364856427,1749275503955,-480.0,0.00028712,5]
[364856428,1749275503965,-1521.99,0.00028712,5]
[364856429,1749275503975,-480.0,0.00028712,5]
[364856430,1749275503985,-480.0,0.00028712,5]
[364856431,1749275503995,-1993.68,0.00028712,5]
[364856432,1749275504005,-633.62,0.00028712,5]
[364856433,1749275504015,-3750.22,0.00028712,5]
[364856434,1749275504025,-480.0,0.00028712,5]
[364856435,1749275504035,-1168.37,0.00028712,5]
[364856436,1749275504045,-812.77,0.00028712,5]
[364856437,1749275504055,-12535.73,0.00028712,5]
[364856438,1749275504065,-480.0,0.00028712,5]
[364856439,1749275504075,-513.52,0.00028712,5]
[364856440,1749275504085,-480.0,0.00028712,5]
[364856441,1749275504095,-1806.88,0.00028712,5]
[364856442,1749275504104,-2045.24,0.00028712,5]
[364856443,1749275504114,-521.13,0.00028712,5]
[364856444,1749275504123,-480.0,0.00028712,5]
[364856445,1749275504133,-2237.15,0.00028712,5]
[364856446,1749275504143,-484.51,0.00028712,5]
[364856447,1749275504153,-1414.74,0.00028712,5]
[364856448,1749275504164,-719.02,0.00028712,5]
[364856449,1749275504175,-480.0,0.00028712,5]
[364856450,1749275504185,-1721.85,0.00028712,5]
[364856451,1749275504195,-1125.11,0.00028712,5]
[364856452,1749275504205,-658.17,0.00028712,5]
[364856453,1749275504215,-1927.59,0.00028712,5]
[364856454,1749275504225,-776.34,0.00028712,5]
[364856455,1749275504235,-749.65,0.00028712,5]
[364856456,1749275504247,-697.95,0.00028712,5]
[364856457,1749275504257,-518.65,0.00028712,5]
[364856458,1749275504267,-480.0,0.00028712,5]
[364856459,1749275504277,-2031.28,0.00028712,5]
[364856460,1749275504287,-1830.02,0.00028712,5]
[364856461,1749275504296,-480.0,0.00028712,5]
[364856462,1749275504305,-565.41,0.00028712,5]
[364856463,1749275504315,-757.09,0.00028712,5]
[364856464,1749275504325,-1739.86,0.00028712,5]
[364856465,1749275504334,-480.0,0.00028712,5]
[364856466,1749275504344,-886.47,0.00028712,5]
[364856467,1749275504354,-10865.99,0.00028712,5]
[364856468,1749275504364,-480.0,0.00028712,5]
[364856469,1749275504374,-1387.38,0.00028712,5]
[364856470,1749275504385,-644.76,0.00028712,5]
[364856471,1749275504395,-1102.12,0.00028712,5]
[364856472,1749275504405,-480.0,0.00028712,5]
[364856473,1749275504415,-1440.45,0.00028712,5]
[364856474,1749275504426,-480.0,0.00028712,5]
[364856475,1749275504436,-642.18,0.00028712,5]
[364856476,1749275504537,-686.12,0.00028712,5]
[364856477,1749275504548,-480.0,0.00028712,5]
[364856478,1749275504558,-480.0,0.00028712,5]
[364856479,1749275504568,-480.0,0.00028712,5]
[364856480,1749275504578,-7442.43,0.00028712,5]
[364856481,1749275504587,-480.0,0.00028712,5]
[364856482,1749275504597,-3308.39,0.00028712,5]
[364856483,1749275504606,-646.52,0.00028712,5]
[364856484,1749275504616,-2073.8,0.00028712,5]
[364856485,1749275504626,-483.04,0.00028712,2]
[364856486,1749275504636,-480.0,0.00028712,5]
[364856487,1749275504645,-2227.22,0.00028712,5]
[364856488,1749275504655,-16410.82,0.00028712,5]
[364856489,1749275504664,-480.0,0.00028712,5]
[364856490,1749275504673,-846.38,0.00028712,5]
[364856491,1749275504683,-1668.56,0.00028712,5]
[364856492,1749275504693,-480.0,0.00028712,2]
[364856493,1749275504702,-3612.7,0.00028712,5]
[364856494,1749275504711,-816.17,0.00028712,5]
[364856495,1749275504719,-1442.32,0.00028712,5]
[364856496,1749275504728,-150.0,0.00028713,7]
[364856497,1749275504738,-150.0,0.00028718,7]
[364856498,1749275504747,-279.10775981,0.00028724,7]
[364856499,1749275504756,-218.84593086,0.00028724,7]
[364856500,1749275504766,-162.65,0.00028744,2]
[364856501,1749275504775,-279.10775981,0.00028756,7]
[364856502,1749275504785,-218.84593086,0.00028756,7]
[364856503,1749275504794,-150.0,0.00028756,7]
[364856504,1749275504804,-150.0,0.00028757,7]
[364856505,1749275504813,-150.0,0.0002876,7]
[364856506,1749275504823,-150.0,0.00028764,7]
[364856507,1749275504832,-600.0,0.00028767,2]
[364856508,1749275504841,-600.0,0.00028767,2]
[364856509,1749275504850,-600.0,0.00028767,2]
[364856510,1749275504860,-600.0,0.00028767,2]
[364856511,1749275504869,-307.41163561,0.00028767,2]
[364856512,1749275504879,-169.0,0.00028767,14]
[364856513,1749275504888,-4073.38,0.00028767,2]
[364856514,1749275504896,-1000.0,0.0002877,7]
[364856515,1749275504906,-279.10775981,0.00028788,7]
[364856516,1749275504915,-218.84593086,0.00028788,7]
[364856517,1749275504924,-150.0,0.0002879,7]
[364856518,1749275504933,-150.0,0.00028799,7]
[364856519,1749275504943,-1400.0,0.000288,2]
[364856520,1749275504952,-940.59,0.000288,2]
[364856521,1749275504961,-238.85,0.000288,2]
[364856522,1749275504971,-208.8,0.000288,2]
[364856523,1749275504982,-186.68,0.000288,2]
[364856524,1749275504992,-975.39,0.000288,2]
[364856525,1749275505002,-1213.82,0.000288,2]
[364856526,1749275505011,-150.0,0.00028809,7]
[364856527,1749275505021,-279.10775981,0.0002882,7]
[364856528,1749275505033,-218.84593086,0.0002882,7]
[364856529,1749275505043,-150.0,0.00028822,7]
[364856530,1749275505052,-150.0,0.00028839,2]
[364856531,1749275505063,-150.0,0.00028842,7]
[364856532,1749275505072,-212.0,0.0002885,30]
[364856533,1749275505081,-207.0,0.0002885,2]
[364856534,1749275505090,-586.40670693,0.00028852,2]
[364856535,1749275505099,-160.66128485,0.00028852,2]
[364856536,1749275505108,-279.10775981,0.00028852,7]
[364856537,1749275505117,-218.84593086,0.00028852,7]
[364856538,1749275505127,-150.0,0.00028854,7]
[364856539,1749275505136,-67085.8263544,0.00028856,2]
[364856540,1749275505145,-700.0,0.0002887,2]
[364856541,1749275505154,-150.0,0.00028872,7]
[364856542,1749275505165,-150.0,0.00028872,7]
[364856543,1749275505177,-636.82,0.00028876,5]
[364856544,1749275505186,-151.0,0.00028876,7]
[364856545,1749275505195,-508.809037,0.00028876,7]
[364856546,1749275505204,-508.809037,0.00028876,7]
[364856547,1749275505215,-1712.784714,0.00028876,5]
[364856548,1749275505224,-2014.532933,0.00028876,5]
[364856549,1749275505234,-480.0,0.00028876,5]
[364856550,1749275505244,-865.268916,0.00028876,7]
[364856551,1749275505254,-151.0,0.00028876,7]
[364856552,1749275505264,-151.0,0.00028876,7]
[364856553,1749275505274,-180.364341,0.00028876,7]
[364856554,1749275505284,-480.0,0.00028876,5]
[364856555,1749275505294,-180.364345,0.00028876,7]
[364856556,1749275505304,-965.47,0.00028876,5]
[364856557,1749275505314,-480.0,0.00028876,5]
[364856558,1749275505324,-779.14,0.00028876,5]
[364856559,1749275505333,-343.84353612,0.00028876,5]
[364856560,1749275505343,-480.0,0.00028876,5]
[364856561,1749275505353,-480.0,0.00028876,5]
[364856562,1749275505363,-157.072117,0.00028876,7]
[364856563,1749275505374,-157.072114,0.00028876,7]
[364856564,1749275505383,-480.0,0.00028876,5]
[364856565,1749275505393,-480.0,0.00028876,5]
[364856566,1749275505403,-553.1,0.00028876,5]
[364856567,1749275505413,-480.0,0.00028876,5]
[364856568,1749275505423,-1873.25,0.00028876,5]
[364856569,1749275505432,-748.25,0.00028876,5]
[364856570,1749275505442,-480.0,0.00028876,5]
[364856571,1749275505452,-891.05,0.00028876,5]
[364856572,1749275505462,-807.46,0.00028876,5]
[364856573,1749275505472,-480.0,0.00028876,5]
[364856574,1749275505481,-480.0,0.00028876,5]
[364856575,1749275505491,-480.0,0.00028876,5]
[364856576,1749275505502,-480.0,0.00028876,5]
[364856577,1749275505513,-592.7,0.00028876,5]
[364856578,1749275505522,-511.82,0.00028876,5]
[364856579,1749275505532,-488.56,0.00028876,5]
[364856580,1749275505544,-1115.25,0.00028876,5]
[364856581,1749275505553,-1363.86,0.00028876,5]
[364856582,1749275505563,-504.56,0.00028876,5]
[364856583,1749275505573,-774.18,0.00028876,5]
[364856584,1749275505583,-692.39,0.00028876,5]
[364856585,1749275505592,-480.0,0.00028876,5]
[364856586,1749275505601,-598.1,0.00028876,5]
[364856587,1749275505611,-585.52,0.00028876,5]
[364856588,1749275505620,-1003.36,0.00028876,5]